fUST/lending_fUST_20240103
["ID","MTS","AMOUNT","RATE_DAILY","PERIOD"]
[309894399,1704211843484,-500.0,0.00046461,21]
[309894401,1704211843493,-500.0,0.00046461,21]
[309894402,1704211843503,-288.95425275,0.00046461,21]
[309894404,1704211843512,-250.0,0.00046461,10]
[309894405,1704211843521,-1013.56,0.00046461,21]
[309894407,1704211843530,-1013.56,0.00046461,21]
[309894409,1704211843540,-1013.56,0.00046461,21]
[309894410,1704211843549,-1013.56,0.00046461,21]
[309894412,1704211843558,-1013.56,0.00046461,21]
[309894414,1704211843567,-1013.56,0.00046461,21]
[309894416,1704211843576,-1013.56,0.00046461,21]
[309894417,1704211843586,-1013.56,0.00046461,21]
[309894419,1704211843595,-1013.56,0.00046461,21]
[309894421,1704211843605,-1013.56,0.00046461,21]
[309894423,1704211843614,-1013.56,0.00046461,21]
[309894425,1704211843625,-1013.56,0.00046461,21]
[309894427,1704211843634,-1013.56,0.00046461,21]
[309894428,1704211843642,-1013.56,0.00046461,21]
[309894430,1704211843651,-1013.56,0.00046461,21]
[309894432,1704211843661,-1013.56,0.00046461,21]
[309894434,1704211843674,-1013.74114045,0.00046461,21]
[309894436,1704211843683,-500.0,0.00046461,21]
[309894437,1704211843692,-500.0,0.00046461,21]
[309894439,1704211843701,-500.0,0.00046461,21]
[309894441,1704211843710,-500.0,0.00046461,21]
[309894443,1704211843719,-500.0,0.00046461,21]
[309894445,1704211843731,-500.0,0.00046461,21]
[309894447,1704211843741,-500.0,0.00046461,21]
[309894449,1704211843750,-500.0,0.00046461,21]
[309894451,1704211843759,-500.0,0.00046461,21]
[309894453,1704211843768,-500.0,0.00046461,21]
[309894455,1704211843778,-290.42945661,0.00046461,21]
[309894456,1704211843787,-500.0,0.00046461,21]
[309894458,1704211843796,-500.0,0.00046461,21]
[309894460,1704211843805,-500.0,0.00046461,21]
[309894462,1704211843814,-500.0,0.00046461,21]
[309894464,1704211843824,-500.0,0.00046461,21]
[309894466,1704211843833,-500.0,0.00046461,21]
[309894467,1704211843842,-500.0,0.00046461,21]
[309894469,1704211843851,-500.0,0.00046461,21]
[309894471,1704211843860,-500.0,0.00046461,21]
[309894473,1704211843871,-500.0,0.00046461,21]
[309894475,1704211843880,-500.0,0.00046461,21]
[309894477,1704211843889,-500.0,0.00046461,21]
[309894478,1704211843898,-500.0,0.00046461,21]
[309894480,1704211843906,-500.0,0.00046461,21]
[309894482,1704211843916,-500.0,0.00046461,21]
[309894484,1704211843925,-500.0,0.00046461,21]
[309894486,1704211843934,-213.00909217,0.00046461,21]
[309894488,1704211843943,-500.0,0.00046461,21]
[309894490,1704211843952,-500.0,0.00046461,21]
[309894492,1704211843960,-500.0,0.00046461,21]
[309894493,1704211843970,-500.0,0.00046461,21]
[309894495,1704211843980,-500.0,0.00046461,21]
[309894497,1704211843989,-507.4210666,0.00046461,21]
[309894499,1704211843998,-2885.68,0.00046461,21]
[309894501,1704211844007,-2885.68,0.00046461,21]
[309894503,1704211844016,-2885.68,0.00046461,21]
[309894505,1704211844025,-2885.68,0.00046461,21]
[309894507,1704211844034,-2885.68,0.00046461,21]
[309894508,1704211844044,-2885.68,0.00046461,21]
[309894510,1704211844053,-2885.68,0.00046461,21]
[309894512,1704211844063,-2885.68,0.00046461,21]
[309894514,1704211844071,-2885.68,0.00046461,21]
[309894516,1704211844081,-2885.68,0.00046461,21]
[309894518,1704211844090,-2885.68,0.00046461,21]
[309894520,1704211844100,-2885.68,0.00046461,21]
[309894522,1704211844109,-2885.68,0.00046461,21]
[309894524,1704211844118,-2885.68,0.00046461,21]
[309894525,1704211844127,-2885.68,0.00046461,21]
[309894527,1704211844137,-1776.3074978,0.00046461,21]
[309894530,1704211844157,-521.0003647,0.00046461,21]
[309894533,1704211844170,-527.12954456,0.00046461,21]
[309894539,1704211844232,-212.34718909,0.00045927,2]
[309894541,1704211844242,-61.24259294,0.00046461,21]
[309894543,1704211844251,-306.33291228,0.00046461,21]
[309894545,1704211844262,-1095.0,0.00046461,21]
[309894548,1704211844274,-1484.34708772,0.00046461,21]
[309894549,1704211844283,-1728.56200184,0.00046461,21]
[309894552,1704211844296,-1157.11799816,0.00046461,21]
[309894554,1704211844305,-199.30398875,0.00046461,21]
[309894556,1704211844318,-2686.37601125,0.00046461,21]
[309894558,1704211844327,-2885.87081378,0.00046461,21]
[309894559,1704211844336,-151.0,0.00046461,7]
[309894561,1704211844345,-151.0,0.00046461,7]
[309894563,1704211844354,-152.38821223,0.00046461,7]
[309894565,1704211844363,-151.0,0.00046462,7]
[309894567,1704211844373,-151.0,0.00046462,7]
[309894569,1704211844383,-282.188719,0.00046462,7]
[309894571,1704211844392,-4149.1,0.00046469,21]
[309894573,1704211844402,-2007.68917471,0.00046469,21]
[309894575,1704211844414,-2141.41082529,0.00046469,21]
[309894577,1704211844423,-383.90320437,0.00046469,21]
[309894788,1704211846561,-500.0,0.00046027,21]
[309894794,1704211846582,-3765.19679563,0.00046469,21]
[309894797,1704211846593,-4149.1,0.00046469,21]
[309894799,1704211846602,-2195.03270221,0.00046469,21]
[309894802,1704211846619,-1954.19977695,0.00046469,21]
[309894805,1704211846630,-1354.69,0.00046469,21]
[309894808,1704211846640,-1354.69,0.00046469,21]
[309894811,1704211846650,-1354.69,0.00046469,21]
[309894815,1704211846660,-1634.87,0.00046469,2]
[309894818,1704211846689,-1354.69,0.00046469,21]
[309894821,1704211846705,-1634.87,0.00046469,2]
[309894824,1704211846714,-1354.69,0.00046469,21]
[309894826,1704211846724,-1354.69,0.00046469,21]
[309894829,1704211846733,-816.76146698,0.00046469,2]
[309894833,1704211846745,-818.10853302,0.00046469,2]
[309894836,1704211846755,-1634.87,0.00046469,2]
[309894839,1704211846764,-1354.87712855,0.00046469,21]
[309894842,1704211846774,-1635.0369,0.00046469,2]
[309894845,1704211846783,-188.44053339,0.0004647,41]
[309897354,1704212843102,-533.7215135,0.00038984,7]
[309897401,1704213033115,-154.78330338,0.00038983,5]
[309897403,1704213033125,-28437.20692437,0.00038984,30]
[309897405,1704213033135,-1000.0,0.00038999,7]
[309897407,1704213033145,-675.47245459,0.00039,7]
[309897410,1704213033154,-184.57184258,0.00041721,2]
[309897413,1704213033163,-166.86618,0.00043245,2]
[309897415,1704213033173,-202.997715,0.00044059,120]
[309897418,1704213033183,-267.3072,0.00044086,2]
[309897421,1704213033192,-150.0,0.00044361,2]
[309897423,1704213033202,-200.0,0.00044468,30]
[309897425,1704213033212,-238.0,0.00044484,2]
[309897427,1704213033221,-155.0,0.00045514,2]
[309897430,1704213033231,-167.72,0.00045515,2]
[309897433,1704213033240,-167.72,0.00045515,2]
[309897436,1704213033250,-167.72,0.00045515,2]
[309897439,1704213033260,-167.72,0.00045515,2]
[309897441,1704213033270,-167.72,0.00045515,2]
[309897444,1704213033279,-167.72,0.00045515,2]
[309897447,1704213033289,-167.72,0.00045515,2]
[309897450,1704213033299,-167.72,0.00045515,2]
[309897453,1704213033309,-167.72,0.00045515,2]
[309897456,1704213033318,-192.04644695,0.00045515,2]
[309897459,1704213033327,-500.0,0.00046027,21]
[309897462,1704213033338,-201.76870135,0.00046027,21]
[309897465,1704213033348,-500.0,0.00046027,21]
[309897468,1704213033357,-500.0,0.00046027,21]
[309897471,1704213033366,-500.0,0.00046027,21]
[309897474,1704213033375,-500.0,0.00046027,21]
[309897477,1704213033385,-505.1273313,0.00046027,21]
[309897480,1704213033394,-500.0,0.00046027,21]
[309897484,1704213033406,-500.0,0.00046027,21]
[309897487,1704213033415,-532.82576997,0.00046027,21]
[309897490,1704213033424,-500.0,0.00046027,21]
[309897493,1704213033433,-500.0,0.00046027,21]
[309897496,1704213033443,-500.0,0.00046027,21]
[309897499,1704213033452,-500.0,0.00046027,21]
[309897502,1704213033461,-500.0,0.00046027,21]
[309897505,1704213033470,-300.0,0.00046027,21]
[309897507,1704213033479,-293.95122968,0.00046027,21]
[309897509,1704213033488,-2000.0,0.000464,40]
[309897511,1704213033497,-2869.768289,0.000464,40]
[309897513,1704213033508,-2000.0,0.0004641,40]
[309897515,1704213033517,-500.0,0.00046419,21]
[309897517,1704213033526,-2000.0,0.0004642,41]
[309897519,1704213033535,-500.0,0.00046421,21]
[309897521,1704213033545,-500.0,0.00046429,21]
[309897523,1704213033554,-2000.0,0.0004643,41]
[309897525,1704213033564,-2000.0,0.0004644,41]
[309897526,1704213033572,-2000.0,0.0004645,41]
[309897529,1704213033582,-542.16128988,0.00046452,15]
[309897531,1704213033592,-220.30351936,0.00046452,5]
[309897532,1704213033602,-166.11,0.00046454,21]
[309897535,1704213033611,-2000.0,0.0004646,41]
[309897537,1704213033621,-1074.36124576,0.00046465,2]
[309897539,1704213033630,-253.16930114,0.00046469,4]
[309897541,1704213033639,-2000.0,0.0004647,41]
[309897543,1704213033648,-160.0,0.00046474,3]
[309897545,1704213033658,-2813.8948,0.0004648,41]
[309897546,1704213033667,-1652.7,0.00046497,3]
[309897548,1704213033677,-1377.25,0.00046497,3]
[309897550,1704213033687,-5000.0,0.000465,2]
[309897552,1704213033697,-451.99651,0.00046507,4]
[309897554,1704213033706,-230.79051349,0.00046507,21]
[309897556,1704213033717,-622.14,0.00046507,21]
[309897558,1704213033727,-500.0,0.00046507,21]
[309897560,1704213033736,-500.0,0.00046507,21]
[309897562,1704213033746,-500.0,0.00046507,21]
[309897564,1704213033757,-500.0,0.00046507,21]
[309897566,1704213033768,-500.0,0.00046507,21]
[309897568,1704213033778,-500.8175073,0.00046507,21]
[309897571,1704213033788,-527.12954456,0.00046507,21]
[309897572,1704213033798,-500.0,0.00046507,21]
[309897575,1704213033809,-185.25,0.00046507,21]
[309897576,1704213033818,-500.0,0.00046507,21]
[309897579,1704213033829,-500.0,0.00046507,21]
[309897580,1704213033839,-500.0,0.00046507,21]
[309897582,1704213033852,-500.0,0.00046507,21]
[309897584,1704213033861,-500.0,0.00046507,21]
[309897586,1704213033871,-500.0,0.00046507,21]
[309897589,1704213033882,-500.0,0.00046507,21]
[309897591,1704213033892,-500.0,0.00046507,21]
[309897593,1704213033904,-500.0,0.00046508,21]
[309897594,1704213033914,-500.0,0.00046508,21]
[309897597,1704213033924,-500.0,0.00046508,21]
[309897598,1704213033934,-570.48,0.00046508,21]
[309897599,1704213033944,-500.0,0.00046508,21]
[309897601,1704213033954,-1035.75,0.00046508,21]
[309897603,1704213033963,-1035.75,0.00046508,21]
[309897604,1704213033973,-549.78098132,0.00046508,21]
[309897606,1704213033984,-500.0,0.00046508,21]
[309897609,1704213033994,-500.0,0.00046508,21]
[309897611,1704213034004,-863.02,0.00046508,21]
[309897613,1704213034014,-863.02,0.00046508,21]
[309897615,1704213034023,-500.0,0.00046508,21]
[309897616,1704213034033,-500.0,0.00046508,21]
[309897617,1704213034042,-500.0,0.00046508,21]
[309897618,1704213034052,-500.0,0.00046508,21]
[309897619,1704213034062,-500.0,0.00046508,21]
[309897620,1704213034071,-500.0,0.00046508,21]
[309897621,1704213034081,-500.0,0.00046508,21]
[309897622,1704213034090,-982.09,0.00046508,21]
[309897623,1704213034100,-982.09,0.00046508,21]
[309897624,1704213034110,-500.0,0.00046509,21]
[309897625,1704213034118,-500.0,0.00046509,21]
[309897626,1704213034127,-330.65344975,0.00046509,21]
[309897627,1704213034137,-416.88045721,0.00046509,21]
[309897628,1704213034146,-500.0,0.00046509,21]
[309897629,1704213034155,-250.0,0.00046509,10]
[309897630,1704213034164,-500.0,0.00046509,21]
[309897631,1704213034173,-504.6929032,0.00046509,21]
[309897632,1704213034183,-500.0,0.00046509,21]
[309897633,1704213034192,-500.0,0.00046509,21]
[309897634,1704213034201,-514.44890627,0.00046509,21]
[309897635,1704213034211,-500.0,0.00046509,21]
[309897636,1704213034222,-506.9917064,0.00046509,21]
[309897637,1704213034232,-500.0,0.00046509,21]
[309897638,1704213034242,-500.0,0.00046509,21]
[309897639,1704213034251,-500.0,0.00046509,21]
[309897640,1704213034260,-500.0,0.00046509,21]
[309897641,1704213034269,-500.0,0.00046509,21]
[309897642,1704213034279,-500.0,0.00046509,21]
[309897643,1704213034289,-500.0,0.00046509,21]
[309897644,1704213034298,-623.2066852,0.00046509,21]
[309897645,1704213034308,-500.0,0.00046509,21]
[309897646,1704213034318,-500.0,0.00046509,21]
[309897647,1704213034327,-500.0,0.00046509,21]
[309897648,1704213034336,-500.0,0.00046509,21]
[309897649,1704213034347,-500.0,0.00046509,21]
[309897650,1704213034356,-442.91,0.00046509,21]
[309897651,1704213034366,-515.47025232,0.00046509,21]
[309897652,1704213034375,-500.0,0.00046509,21]
[309897653,1704213034384,-462.33605719,0.00046509,21]
[309897654,1704213034394,-297.05552429,0.00046509,21]
[309897655,1704213034403,-500.0,0.00046509,21]
[309897656,1704213034413,-510.7545546,0.00046509,21]
[309897657,1704213034423,-500.0,0.00046509,21]
[309897658,1704213034431,-623.7911611,0.00046509,21]
[309897659,1704213034441,-500.0,0.00046509,21]
[309897660,1704213034451,-245.81611527,0.00046509,21]
[309897661,1704213034460,-500.0,0.00046509,21]
[309897662,1704213034470,-500.0,0.00046509,21]
[309897663,1704213034479,-342.71,0.00046509,21]
[309897664,1704213034488,-500.0,0.00046509,21]
[309897665,1704213034498,-238.03222654,0.00046509,21]
[309897666,1704213034507,-500.0,0.00046509,21]
[309897667,1704213034516,-500.0,0.00046509,21]
[309897668,1704213034525,-500.0,0.00046509,21]
[309897669,1704213034534,-500.0,0.00046509,21]
[309897670,1704213034543,-500.0,0.00046509,21]
[309897671,1704213034553,-500.0,0.00046509,21]
[309897672,1704213034563,-500.0,0.00046509,21]
[309897673,1704213034573,-500.0,0.00046509,21]
[309897674,1704213034583,-500.0,0.00046509,21]
[309897675,1704213034593,-500.0,0.00046509,21]
[309897676,1704213034603,-500.0,0.00046509,21]
[309897677,1704213034612,-449.54751327,0.00046509,21]
[309897678,1704213034622,-500.0,0.00046513,21]
[309897679,1704213034631,-500.0,0.00046513,21]
[309897680,1704213034641,-500.0,0.00046513,21]
[309897681,1704213034651,-500.0,0.00046513,21]
[309897682,1704213034661,-500.0,0.00046513,21]
[309897683,1704213034671,-500.0,0.00046513,21]
[309897684,1704213034681,-500.0,0.00046513,21]
[309897685,1704213034691,-500.0,0.00046513,21]
[309897686,1704213034800,-500.0,0.00046513,21]
[309897687,1704213034811,-500.0,0.00046513,21]
[309897688,1704213034822,-500.0,0.00046513,21]
[309897689,1704213034832,-500.0,0.00046513,21]
[309897690,1704213034841,-500.0,0.00046513,21]
[309897691,1704213034855,-500.0,0.00046513,21]
[309897692,1704213034865,-500.0,0.00046513,21]
[309897693,1704213034874,-440.11242196,0.00046513,21]
[309897694,1704213034884,-500.0,0.00046513,21]
[309897695,1704213034892,-500.0,0.00046513,21]
[309897696,1704213034901,-500.0,0.00046513,21]
[309897697,1704213034911,-863.02,0.00046513,21]
[309897698,1704213034920,-863.02,0.00046513,21]
[309897699,1704213034929,-863.02,0.00046513,21]
[309897700,1704213034938,-863.02,0.00046513,21]
[309897701,1704213034948,-863.02,0.00046513,21]
[309897702,1704213034965,-863.02,0.00046513,21]
[309897703,1704213034979,-863.02,0.00046513,21]
[309897704,1704213034989,-863.02,0.00046513,21]
[309897705,1704213034999,-863.02,0.00046513,21]
[309897706,1704213035009,-863.02,0.00046513,21]
[309897707,1704213035019,-863.02,0.00046513,21]
[309897708,1704213035029,-863.02,0.00046513,21]
[309897709,1704213035040,-863.02,0.00046513,21]
[309897710,1704213035050,-863.02,0.00046513,21]
[309897711,1704213035061,-863.02,0.00046513,21]
[309897712,1704213035072,-863.02,0.00046513,21]
[309897713,1704213035082,-863.02,0.00046513,21]
[309897714,1704213035096,-863.02,0.00046513,21]
[309897715,1704213035107,-863.02,0.00046513,21]
[309897716,1704213035117,-863.02,0.00046513,21]
[309897717,1704213035127,-863.02,0.00046513,21]
[309897718,1704213035136,-863.05,0.00046513,21]
[309897719,1704213035146,-500.0,0.00046513,21]
[309897720,1704213035156,-500.0,0.00046513,21]
[309897721,1704213035166,-500.0,0.00046513,21]
[309897722,1704213035176,-500.0,0.00046513,21]
[309897723,1704213035185,-500.0,0.00046513,21]
[309897724,1704213035195,-500.0,0.00046513,21]
[309897725,1704213035205,-500.0,0.00046513,21]
[309897726,1704213035215,-500.0,0.00046513,21]
[309897727,1704213035225,-498.46,0.00046513,21]
[309897728,1704213035236,-239.62962533,0.00046513,4]
[309897729,1704213035246,-15194.0270683,0.00046513,4]
[309897730,1704213035255,-326.06927743,0.00046513,4]
[309897731,1704213035269,-151.0,0.00046514,7]
[309897732,1704213035279,-151.0,0.00046514,7]
[309897733,1704213035289,-151.0,0.00046514,7]
[309897734,1704213035299,-151.0,0.00046514,7]
[309897735,1704213035309,-151.0,0.00046514,7]
[309897736,1704213035319,-151.0,0.00046514,7]
[309897737,1704213035328,-151.0,0.00046514,7]
[309897738,1704213035338,-151.0,0.00046514,7]
[309897739,1704213035349,-151.0,0.00046514,7]
[309897740,1704213035359,-151.0,0.00046514,7]
[309897741,1704213035368,-151.0,0.00046514,7]
[309897742,1704213035377,-151.0,0.00046514,7]
[309897743,1704213035386,-151.0,0.00046514,7]
[309897744,1704213035395,-151.0,0.00046514,7]
[309897745,1704213035405,-151.0,0.00046514,7]
[309897746,1704213035414,-151.0,0.00046514,7]
[309897747,1704213035423,-231.450188,0.00046514,7]
[309897748,1704213035432,-1035.75,0.00046514,21]
[309897749,1704213035442,-500.0,0.00046514,21]
[309897750,1704213035451,-500.0,0.00046514,21]
[309897751,1704213035460,-982.09,0.00046514,21]
[309897752,1704213035470,-420.0,0.00046515,2]
[309897753,1704213035479,-211.69,0.00046515,7]
[309897754,1704213035488,-211.69,0.00046515,7]
[309897755,1704213035497,-211.69,0.00046515,7]
[309897756,1704213035506,-211.69,0.00046515,7]
[309897757,1704213035515,-211.69,0.00046515,7]
[309897758,1704213035525,-211.69,0.00046515,7]
[309897759,1704213035534,-211.69,0.00046515,7]
[309897760,1704213035544,-211.69,0.00046515,7]
[309897761,1704213035553,-211.69,0.00046515,7]
[309897762,1704213035563,-211.69,0.00046515,7]
[309897763,1704213035573,-160.71099365,0.00046515,2]
[309897764,1704213035583,-2886.5021163,0.00046515,2]
[309897765,1704213035592,-900.01480962,0.00046515,2]
[309897766,1704213035603,-28554.35175214,0.00046515,4]
[309897767,1704213035614,-1035.75,0.00046515,21]
[309897768,1704213035625,-1035.75,0.00046515,21]
[309897769,1704213035635,-1035.75,0.00046515,21]
[309897770,1704213035645,-1035.75,0.00046515,21]
[309897771,1704213035655,-1035.75,0.00046515,21]
[309897772,1704213035665,-1035.75,0.00046515,21]
[309897773,1704213035675,-1035.75,0.00046515,21]
[309897774,1704213035685,-1035.75,0.00046515,21]
[309897775,1704213035695,-1035.75,0.00046515,21]
[309897776,1704213035704,-1035.75,0.00046515,21]
[309897777,1704213035714,-1035.75,0.00046515,21]
[309897778,1704213035724,-1035.75,0.00046515,21]
[309897779,1704213035734,-1035.75,0.00046515,21]
[309897780,1704213035744,-1035.75,0.00046515,21]
[309897781,1704213035753,-1035.75,0.00046515,21]
[309897782,1704213035763,-1035.75,0.00046515,21]
[309897783,1704213035773,-1035.75,0.00046515,21]
[309897784,1704213035783,-1035.75,0.00046515,21]
[309897785,1704213035792,-1035.75,0.00046515,21]
[309897786,1704213035803,-1035.75,0.00046515,21]
[309897787,1704213035813,-1035.92686285,0.00046515,21]
[309897788,1704213035823,-500.0,0.00046515,21]
[309897789,1704213035832,-500.0,0.00046515,21]
[309897790,1704213035843,-500.0,0.00046515,21]
[309897791,1704213035853,-500.0,0.00046515,21]
[309897792,1704213035863,-500.0,0.00046515,21]
[309897793,1704213035873,-575.49577193,0.00046515,21]
[309897794,1704213035883,-500.0,0.00046515,21]
[309897795,1704213035893,-500.0,0.00046515,21]
[309897796,1704213035903,-500.0,0.00046515,21]
[309897797,1704213035913,-500.0,0.00046515,21]
[309897798,1704213035922,-500.0,0.00046515,21]
[309897799,1704213035932,-500.0,0.00046515,21]
[309897800,1704213035942,-982.09,0.00046515,21]
[309897801,1704213035952,-982.09,0.00046515,21]
[309897802,1704213035962,-982.09,0.00046515,21]
[309897803,1704213035971,-982.09,0.00046515,21]
[309897804,1704213035981,-151.0,0.00046516,7]
[309897805,1704213035990,-66520.31794097,0.00046516,7]
[309897806,1704213036043,-78791.34373689,0.00046516,7]
[309897870,1704213038939,-527.12954456,0.00046515,21]
[309898177,1704213042110,-1147.71,0.00046506,3]
[309898179,1704213042121,-454.96045544,0.00046515,21]
[309898181,1704213042130,-976.53143321,0.00046515,21]
[309898183,1704213042142,-5.55856679,0.00046515,21]
[309898185,1704213042151,-982.09,0.00046515,21]
[309898187,1704213042161,-982.09,0.00046515,21]
[309898189,1704213042170,-26.14927811,0.00046515,21]
[309898355,1704213043759,-309.19009263,0.00046515,21]
[309898357,1704213043772,-646.75062926,0.00046515,21]
[309898359,1704213043781,-359.55340329,0.00046515,21]
[309898367,1704213043848,-622.53659671,0.00046515,21]
[309898369,1704213043859,-982.09,0.00046515,21]
[309898372,1704213043868,-982.09,0.00046515,21]
[309898376,1704213043879,-982.09,0.00046515,21]
[309898379,1704213043889,-982.09,0.00046515,21]
[309898381,1704213043898,-982.09,0.00046515,21]
[309898382,1704213043907,-982.09,0.00046515,21]
[309898384,1704213043916,-982.09,0.00046515,21]
[309898387,1704213043927,-982.09,0.00046515,21]
[309898389,1704213043936,-538.14340329,0.00046515,21]
[309898397,1704213044011,-443.94659671,0.00046515,21]
[309898399,1704213044020,-521.93672217,0.00046515,21]
[309898684,1704213046829,-227.780481,0.00042091,30]
[309898685,1704213046839,-919.65,0.00042191,66]
[309898687,1704213046849,-227.780481,0.00042617,30]
[309898689,1704213046859,-500.0,0.00046509,21]
[309898691,1704213046869,-500.0,0.00046509,21]
[309898693,1704213046880,-500.0,0.00046509,21]
[309898695,1704213046890,-500.0,0.00046509,21]
[309898697,1704213046899,-1000.0,0.00046514,7]
[309898700,1704213046910,-460.15327783,0.00046515,21]
[309898701,1704213046920,-982.12,0.00046515,21]
[309898703,1704213046930,-151.0,0.00046516,7]
[309898705,1704213046940,-151.0,0.00046516,7]
[309898707,1704213046949,-151.0,0.00046516,7]
[309898709,1704213046960,-151.0,0.00046516,7]
[309898712,1704213046970,-151.0,0.00046516,7]
[309898713,1704213046980,-151.0,0.00046516,7]
[309898715,1704213046990,-151.0,0.00046516,7]
[309898717,1704213047000,-151.0,0.00046516,7]
[309898719,1704213047010,-151.0,0.00046516,7]
[309898721,1704213047021,-151.0,0.00046516,7]
[309898723,1704213047031,-237.637812,0.00046516,7]
[309898725,1704213047042,-3149.39348008,0.00046516,7]
[309901169,1704213275986,-2006.0,0.0004,120]
[309901170,1704213720652,-1000.0,0.00038769,7]
[309901171,1704213825996,-0.3,0.0004,120]
[309901210,1704214231914,-1000.0,0.00038761,7]
[309901212,1704214231924,-154.78330338,0.00038762,5]
[309901213,1704214231934,-3387.78283413,0.00038883,2]
[309901215,1704214231943,-8696.0,0.0004,2]
[309901216,1704214231953,-303.31256147,0.0004,4]
[309901217,1704214231962,-166.666666,0.00040999,2]
[309901219,1704214231972,-174.917096,0.00041627,2]
[309901221,1704214231981,-2407.5208482,0.00041743,15]
[309901222,1704214231990,-202.997715,0.00041756,120]
[309901224,1704214231999,-357.473234,0.00041776,2]
[309901225,1704214232009,-300.0,0.00042,22]
[309901226,1704214232018,-227.780481,0.00043143,30]
[309901227,1704214232028,-174.917096,0.00043167,2]
[309901228,1704214232038,-227.780481,0.00043669,30]
[309901229,1704214232048,-300.0,0.00043999,30]
[309901230,1704214232058,-495.31512757,0.00044188,5]
[309901231,1704214232067,-227.780481,0.00044195,30]
[309901232,1704214232076,-150.0,0.00044416,2]
[309901233,1704214232085,-174.917096,0.00044708,2]
[309901234,1704214232095,-20853.93438526,0.000448,30]
[309901235,1704214232104,-238.0,0.00044971,2]
[309901236,1704214232114,-151.0,0.00044974,21]
[309901237,1704214232125,-200.0,0.00045,90]
[309901238,1704214232134,-153.0,0.00046095,2]
[309901239,1704214232144,-389.96835489,0.00046242,7]
[309901240,1704214232154,-1000.0,0.00046245,7]
[309901241,1704214232164,-174.917096,0.00046248,2]
[309901242,1704214232175,-160.0,0.00046255,3]
[309901243,1704214232185,-1000.0,0.00046273,7]
[309901244,1704214232196,-171.0,0.00046274,7]
[309901245,1704214232205,-1000.0,0.00046314,7]
[309901246,1704214232215,-1000.0,0.00046343,7]
[309901247,1704214232225,-150.0,0.000464,40]
[309901248,1704214232334,-1767.19076544,0.00046469,15]
[309901249,1704214232346,-542.86139444,0.00046469,15]
[309901250,1704214232356,-1103.46,0.00046497,3]
[309901251,1704214232366,-919.55,0.00046497,3]
[309901252,1704214232378,-198.79992,0.00046499,30]
[309901253,1704214232391,-2344.11490413,0.000465,2]
[309901254,1704214232400,-1026.63637196,0.000465,30]
[309901255,1704214232410,-1428.65,0.00046506,21]
[309901256,1704214232421,-1428.65,0.00046506,21]
[309901257,1704214232431,-500.0,0.00046506,10]
[309901258,1704214232440,-313.35709377,0.00046506,10]
[309901259,1704214232450,-500.0,0.00046507,21]
[309901260,1704214232460,-584.98026133,0.00046507,21]
[309901261,1704214232469,-500.0,0.00046507,21]
[309901262,1704214232478,-500.0,0.00046507,21]
[309901263,1704214232487,-503.96848115,0.00046507,21]
[309901264,1704214232497,-509.57499966,0.00046507,21]
[309901265,1704214232507,-500.0,0.00046507,21]
[309901266,1704214232516,-435.2257963,0.00046507,21]
[309901267,1704214232526,-500.0,0.00046507,21]
[309901268,1704214232535,-500.0,0.00046507,21]